bitfinex/quotes_ETHUSD_20220215
["timestamp","ask_amount","ask_price","bid_price","bid_amount"]
[1644957335713,0.00296051,3114.4,3114.1,0.80284]
[1644957336315,0.00296051,3114.4,3114.0,0.8027528]
[1644957336515,0.00432366,3115.0,3114.1,3.5]
[1644957336714,0.00432366,3115.4,3114.1,10.36584]
[1644957336918,0.00432366,3115.4,3114.5,0.8026611]
[1644957337114,0.00432366,3115.4,3114.6,3.38549382]
[1644957337320,0.00432366,3115.4,3114.5,0.8026611]
[1644957337616,1.14386208,3115.2,3114.2,8.74762491]
[1644957337921,0.00432366,3115.1,3114.0,3.225]
[1644957338164,0.00432366,3115.1,3114.0,4.05189285]
[1644957338165,0.00727677,3115.1,3114.0,4.05189285]
[1644957338561,0.81003677,3115.1,3114.1,0.8028]
[1644957338962,1.15065449,3114.7,3114.1,1.1028]
[1644957339362,1.15065449,3114.7,3114.2,0.80281]
[1644957339764,1.95350449,3114.7,3113.9,1.60556]
[1644957339967,1.95350449,3114.7,3113.5,6.18135]
[1644957340163,2.20350449,3114.7,3113.6,1.1972]
[1644957340363,0.00295311,3114.5,3113.6,1.1972]
[1644957341269,0.803,3114.4,3113.3,1.7993]
[1644957341465,0.803,3114.4,3113.0,1.1666]
[1644957341466,0.90006026,3113.9,3113.0,1.1666]
[1644957341764,1.15006026,3113.9,3113.0,1.1666]
[1644957342029,1.15006026,3113.9,3112.9,1.60614]
[1644957342531,0.80319,3113.7,3112.9,0.80317]
[1644957342729,0.80319,3113.7,3112.9,1.60631]
[1644957343027,0.00295311,3113.6,3113.0,3.28027488]
[1644957343226,0.00295311,3113.6,3113.0,3.58027488]
[1644957343426,0.00295311,3113.6,3113.0,0.3]
[1644957343626,0.00295311,3113.6,3113.0,0.80292]
[1644957343825,0.8029,3114.5,3113.1,4.58559329]
[1644957344027,0.00295311,3113.5,3113.3,1.60573]
[1644957345032,0.80304,3113.9,3113.3,1.60573]
[1644957345227,0.00295311,3113.6,3113.3,1.60573]
[1644957345427,0.00295311,3113.6,3113.3,3.2114494]
[1644957345666,0.00295311,3113.6,3113.3,4.8172894]
[1644957346267,0.80304,3113.9,3113.3,4.8172894]
[1644957346467,0.00295311,3113.6,3113.3,4.8172894]
[1644957346871,0.00295311,3113.6,3113.4,4.91966216]
[1644957347071,0.0118097,3114.3,3113.6,0.00328653]
[1644957347269,0.0118097,3114.3,3113.7,0.80294]
[1644957347469,0.001,3115.0,3113.7,0.80294]
[1644957347677,0.00432366,3114.9,3113.7,0.80294]
[1644957347870,0.80288,3114.5,3113.6,0.00328653]
[1644957348070,0.25,3114.4,3113.6,0.00328653]
[1644957348873,0.91630683,3114.1,3113.6,0.00328653]
[1644957349172,0.80315,3114.0,3113.6,0.00328653]
[1644957350013,0.80609573,3114.0,3113.6,0.00328653]
[1644957350417,0.80315,3113.9,3113.6,0.00328653]
[1644957350618,0.80315,3113.9,3112.6,6.05012705]
[1644957350619,0.24671347,3113.1,3112.6,4.44390705]
[1644957350817,0.24671347,3113.1,3112.6,3.23140705]
[1644957351018,0.24671347,3113.1,3112.7,3.22774963]
[1644957351417,0.24671347,3113.1,3112.7,4.83384723]
[1644957351615,0.24671347,3113.1,3112.7,6.43983853]
[1644957351816,0.24671347,3113.1,3112.7,5.63683853]
[1644957352217,0.24671347,3113.1,3112.7,6.81995554]
[1644957353466,0.24671347,3113.1,3112.7,5.21396424]
[1644957354667,0.24671347,3113.1,3112.7,6.81997084]
[1644957354868,0.24671347,3113.1,3112.7,6.01696084]
[1644957355972,0.25,3114.0,3112.7,6.01696084]
[1644957356169,0.00294506,3113.8,3112.8,0.80292]
[1644957356371,0.00294506,3113.8,3113.0,0.8029183]
[1644957356569,0.00294506,3113.8,3113.1,3.20278738]
[1644957356771,0.30294506,3113.8,3113.1,3.20278738]
[1644957357025,0.3,3113.8,3113.1,3.20278738]
[1644957357421,1.10589559,3113.8,3113.2,0.8029183]
[1644957358320,1.10295,3113.8,3113.2,0.8029183]
[1644957358526,1.10589563,3113.8,3113.2,0.8029183]
[1644957358721,0.80293,3113.7,3113.2,0.8029183]
[1644957359325,0.80293,3113.7,3113.3,3.19560731]
[1644957359525,0.80293,3113.7,3113.2,0.8029183]
[1644957359924,0.80293,3113.7,3113.3,3.19668037]
[1644957360224,0.80293,3113.7,3113.3,4.02882058]
[1644957360425,0.80293,3113.7,3113.3,0.8029264]
[1644957361759,0.30294563,3113.8,3113.4,4.00486138]
[1644957361959,0.3,3113.8,3113.4,0.8028817]
[1644957362160,0.30294563,3113.8,3113.4,0.8028817]
[1644957363160,0.3,3113.8,3113.4,0.8028817]
[1644957363363,0.3,3113.8,3113.2,0.80291]
[1644957363364,0.80293,3113.7,3113.2,0.80291]
[1644957363561,0.80293,3113.7,3113.3,4.01678824]
[1644957364160,0.80293,3113.7,3113.3,0.8029355]
[1644957364613,0.80295,3113.6,3113.3,0.8029355]
[1644957364814,0.80295,3113.6,3113.2,3.20554892]
[1644957364815,0.80296,3113.6,3113.2,3.1853296]
[1644957365012,0.3,3113.5,3113.1,0.8029788]
[1644957365211,0.3,3113.5,3113.2,4.56625203]
[1644957365419,0.3,3113.5,3112.8,1.60586]
[1644957365624,0.3,3113.5,3112.6,1.16930705]
[1644957365625,0.80298,3113.5,3112.6,1.16930705]
[1644957365814,2.40965,3113.3,3112.7,1.36834539]
[1644957366018,2.40965,3113.3,3112.8,1.36834539]
[1644957366214,2.40965,3113.3,3112.9,1.36834539]
[1644957366412,2.40965,3113.3,3113.0,1.36834539]
[1644957366615,3.47479508,3113.3,3113.0,1.36834539]
[1644957366914,0.80318,3113.2,3112.6,0.00330705]
[1644957367716,1.60641,3113.2,3112.6,0.00330705]
[1644957367917,1.10318,3113.1,3112.6,0.00330705]
[1644957368868,0.80316,3113.0,3112.6,0.00330705]
[1644957369068,0.80315,3112.9,3112.6,0.00330705]
[1644957369368,1.90632,3113.1,3112.9,0.65658399]
[1644957369568,1.90632,3113.1,3113.0,1.36842747]
[1644957369767,1.60632,3113.1,3113.0,1.36842747]
[1644957370568,1.60633,3113.2,3113.0,1.36842747]
[1644957370970,0.3,3113.1,3112.9,0.65658399]
[1644957371367,1.37948,3113.2,3112.9,0.65658399]
[1644957371368,2.81330052,3113.2,3112.9,0.65658399]
[1644957371570,3.05150588,3113.2,3112.9,0.65658399]
[1644957371768,2.4100358,3113.1,3112.9,0.65658399]
[1644957372029,4.4518258,3113.1,3112.9,0.65658399]
[1644957372225,0.6,3113.0,3112.9,0.65658399]
[1644957372624,0.6,3113.0,3112.6,0.00330705]
[1644957372829,1.80403831,3112.9,3112.6,0.00330705]
[1644957373027,0.80355,3112.8,3112.6,0.00330705]
[1644957373326,0.3,3112.7,3112.6,0.00330705]
[1644957373728,0.73491,3112.7,3112.6,0.00330705]
[1644957373925,1.57693523,3112.7,3112.6,0.00330705]
[1644957374127,1.87693523,3112.7,3112.6,0.00330705]
[1644957378477,1.14202523,3112.7,3112.6,0.00330705]
[1644957378879,1.60703,3112.9,3112.6,0.00330705]
[1644957378880,0.80347,3112.9,3112.6,0.00330705]
[1644957379086,0.25,3113.4,3112.6,1.3720684]
[1644957379281,0.25,3113.4,3112.7,3.9617274]
[1644957379511,0.25,3113.4,3112.8,1.36876135]
[1644957379711,0.25,3113.4,3112.9,3.71022534]
[1644957379912,0.25,3113.4,3113.0,1.36876135]
[1644957380114,0.25,3113.4,3113.1,3.51481224]
[1644957380413,0.25,3113.4,3113.2,1.36876135]
[1644957380614,0.25,3113.4,3113.3,3.30181289]
[1644957380813,0.25,3113.4,3113.3,1.36876135]
[1644957381012,0.25,3113.4,3112.9,1.36876135]
[1644957381213,0.25,3113.4,3113.0,3.31762048]
[1644957381414,0.25,3113.4,3113.1,1.36876135]
[1644957382113,0.25,3113.4,3113.2,1.36876135]
[1644957382314,0.25,3113.4,3113.3,1.36876135]
[1644957382514,0.25,3113.4,3112.7,1.36876135]
[1644957382714,1.05304,3113.4,3112.8,3.59760273]
[1644957382914,1.05304,3113.4,3112.9,1.36876135]
[1644957383168,1.05304,3113.4,3113.0,3.45599936]
[1644957383370,0.25,3113.4,3113.1,1.36876135]
[1644957383569,0.25,3113.4,3113.2,9.3643466]
[1644957383769,0.25,3113.4,3113.3,5.38375437]
[1644957383972,0.25,3113.4,3113.3,5.84675437]
[1644957385373,0.25,3113.4,3113.3,1.36876135]
[1644957385570,0.25,3113.4,3112.5,1.6448]
[1644957385571,1.25273741,3113.4,3112.5,1.6448]
[1644957385770,1.25273741,3113.4,3112.6,1.37179761]
[1644957385771,0.80321,3113.2,3112.6,1.37179761]
[1644957385971,0.3,3113.1,3112.6,1.37179761]
[1644957386171,0.3,3113.1,3112.7,1.36849056]
[1644957386172,1.10324,3113.1,3112.7,1.36849056]
[1644957386369,0.80324,3113.1,3112.8,1.36849056]
[1644957386569,0.3,3113.1,3112.9,1.36849056]
[1644957386778,1.18899671,3113.0,3112.6,0.00330705]
[1644957387035,6.6,3112.9,3112.3,0.00455083]
[1644957387230,6.6,3112.9,3111.8,0.60522638]
[1644957387231,6.6,3112.7,3111.2,0.81591311]
[1644957387427,6.6,3112.7,3110.6,0.3166426]
[1644957387428,5.0,3112.0,3110.6,0.3166426]
[1644957387630,0.44717684,3111.7,3110.2,0.42934122]
[1644957387829,0.44717684,3111.7,3110.0,0.61265278]
[1644957387830,0.80382,3111.3,3110.0,0.61265278]
[1644957388127,0.92655518,3109.9,3109.6,0.01059488]
[1644957388325,1.62847,3109.9,3109.8,0.61267271]
[1644957388526,1.62847,3109.9,3109.8,0.61267952]
[1644957388725,1.92847,3109.9,3109.6,0.01059488]
[1644957388927,1.1244,3109.9,3109.6,0.01059488]
[1644957389329,0.16891627,3110.1,3109.6,1.66567544]
[1644957389526,0.97285627,3110.1,3109.7,0.61095289]
[1644957390227,0.97285627,3110.1,3109.8,0.61095289]
[1644957390665,0.97285627,3110.1,3109.6,1.66567544]
[1644957391473,1.27285627,3110.1,3109.6,0.62154777]
[1644957391669,3.32582449,3110.0,3109.6,0.01059488]
[1644957391874,4.03454088,3110.0,3109.6,0.01059488]
[1644957392268,4.03454088,3110.0,3109.7,0.00494043]
[1644957392667,1.09111082,3109.8,3109.7,0.00494043]
[1644957392868,1.39111082,3109.8,3109.7,0.00494043]
[1644957393068,1.85411082,3109.8,3109.6,0.01059488]
[1644957393270,0.8042,3109.7,3109.6,0.01059488]
[1644957393469,0.8042,3109.7,3109.6,0.01553544]
[1644957394268,0.8042,3109.7,3109.6,0.01059488]
[1644957395122,1.56718,3109.8,3109.6,0.01059488]
[1644957395722,0.763,3109.8,3109.6,0.01059488]
[1644957397128,0.3,3109.8,3109.6,0.01059488]
[1644957397325,0.80412,3109.8,3109.6,0.01059488]
[1644957398022,1.60828,3109.8,3109.6,0.01059488]
[1644957398668,0.80412,3109.8,3109.6,0.01059488]
[1644957398870,1.60828,3109.8,3109.6,0.01059488]
[1644957399969,0.80412,3109.8,3109.6,0.01059488]
[1644957401920,1.60827,3109.8,3109.6,0.01059488]
[1644957403920,1.10421,3109.9,3109.6,0.01059488]
[1644957404121,0.60382627,3110.1,3109.6,0.01059488]
[1644957404320,0.60382627,3110.1,3109.6,0.01482333]
[1644957404321,0.16891627,3110.1,3109.6,0.01482333]
[1644957404518,0.16891627,3110.1,3109.6,0.01059488]
[1644957405319,0.80402,3110.0,3109.6,0.01059488]
[1644957405521,0.80402,3110.0,3109.7,0.00494043]
[1644957405778,1.10402,3110.0,3109.7,0.00494043]
[1644957406176,0.3,3110.0,3109.7,0.00494043]
[1644957406379,0.3,3110.0,3109.6,0.01059488]
[1644957406578,1.40301146,3110.1,3109.7,0.00494043]
[1644957407179,2.20703146,3110.1,3109.7,0.00494043]
[1644957407583,2.20703146,3110.1,3109.6,0.01059488]
[1644957407880,2.20703146,3110.1,3109.7,0.00494037]
[1644957408479,0.80406,3110.0,3109.7,0.00494037]
[1644957408681,0.97293627,3110.1,3109.6,0.01059488]
[1644957408981,0.97293627,3110.1,3109.7,0.00494037]
[1644957408982,0.16891627,3110.1,3109.7,0.00494037]
[1644957409183,3.0796,3110.9,3110.5,0.11815264]
[1644957409184,0.25,3110.9,3110.5,0.11815264]
[1644957409410,0.3,3111.1,3110.6,0.00422845]
[1644957409613,0.43491,3111.2,3110.6,0.00422845]
[1644957409812,0.86135813,3110.7,3110.6,0.00422845]
[1644957411412,1.16135813,3110.7,3110.6,0.00422845]
[1644957412019,0.86135813,3110.7,3110.6,0.00422845]
[1644957412816,5.2606552,3110.7,3110.6,0.00422845]
[1644957413013,0.8041048,3110.5,3110.0,0.01895729]
[1644957413266,3.66404448,3110.4,3110.0,0.01895729]
[1644957413464,0.87391256,3110.2,3110.0,0.01895729]
[1644957413665,0.80414,3110.1,3109.6,0.01059488]
[1644957414664,1.60828,3110.1,3109.6,0.01059488]
[1644957414865,0.8041,3109.9,3109.6,0.01059488]
[1644957415066,0.8041,3109.9,3109.7,0.00403956]
[1644957416067,3.21642,3109.9,3109.6,0.01059488]
[1644957416267,0.80407,3109.8,3109.6,0.01463451]
[1644957416468,0.80411,3109.7,3109.6,0.01463451]
[1644957417214,0.80407,3109.8,3109.6,0.01463451]
[1644957417215,0.80407,3109.8,3109.6,0.01059488]
[1644957420117,1.60814,3109.8,3109.6,0.01059488]
[1644957420317,3.31602837,3109.7,3109.6,0.01059488]
[1644957420519,0.9591,3109.7,3109.6,0.01059488]
[1644957420966,1.85265903,3109.7,3109.6,0.01059488]
[1644957422766,0.89355903,3109.7,3109.6,0.01059488]
[1644957423169,0.8041,3109.9,3109.6,0.01059488]
[1644957423567,2.41192,3110.2,3109.6,0.01059488]
[1644957423769,1.60797,3110.2,3109.6,0.01059488]
[1644957423969,0.804,3110.1,3109.6,0.01059488]
[1644957424169,0.80397,3109.9,3109.6,0.01059488]
[1644957424421,0.3,3109.9,3109.6,0.01059488]
[1644957424624,1.19340317,3110.0,3109.7,0.00494043]
[1644957424821,2.41235,3109.9,3109.7,0.00494043]
[1644957425021,3.2165257,3109.9,3109.7,0.00494043]
[1644957425223,1.10407,3109.8,3109.7,0.00494043]
[1644957425520,1.10407,3109.8,3109.6,0.01059488]
[1644957425925,1.10407,3109.8,3109.6,0.01553544]
[1644957426522,1.10411,3109.8,3109.6,0.01553544]
[1644957426723,1.10411,3109.8,3109.6,0.01059488]
[1644957427524,0.3,3109.8,3109.6,0.01059488]
[1644957427724,1.10407,3109.9,3109.6,0.01059488]
[1644957428370,2.71218,3109.9,3109.6,0.01059488]
[1644957428771,0.80401,3109.8,3109.6,0.01059488]
[1644957429370,3.5163,3109.9,3109.8,0.55675142]
[1644957429571,3.5163,3109.9,3109.8,0.56091665]
[1644957432323,2.93608404,3109.9,3109.8,0.56091665]
[1644957432521,2.93608404,3109.9,3109.8,1.70093306]
[1644957433227,0.22385404,3109.9,3109.8,1.70093306]
[1644957433424,2.41224,3110.5,3109.8,1.70093306]
[1644957433425,7.5149,3110.7,3109.8,1.70093306]
[1644957433629,7.5149,3110.7,3109.9,1.14001641]
[1644957433630,0.3,3110.4,3109.9,1.14001641]
[1644957433937,0.22389803,3110.3,3110.0,0.00416523]
[1644957434123,0.80396,3110.2,3110.1,1.14001641]
[1644957434326,0.80396,3110.2,3110.0,0.00416523]
[1644957434327,1.63726486,3110.2,3110.0,0.00910527]
[1644957434525,1.02817803,3110.1,3110.0,0.00910527]
[1644957434724,1.62817803,3110.1,3110.0,0.00910527]
[1644957434925,2.62817803,3110.1,3110.0,0.00910527]
[1644957435126,7.4133791,3110.0,3108.7,0.61095289]
[1644957435326,2.76279803,3110.1,3109.0,1.13041546]
[1644957435327,0.80429,3109.8,3109.0,1.13041546]
[1644957435525,0.80429,3109.8,3109.4,0.01976366]
[1644957435526,0.8043,3109.6,3109.4,0.01976366]
[1644957435772,0.22389803,3109.5,3109.4,0.01976366]
[1644957435971,0.22389803,3109.5,3109.4,1.15021183]
[1644957436270,1.02820803,3109.5,3109.4,1.15021183]
[1644957436474,4.27711217,3109.5,3109.4,1.13044817]
[1644957436672,1.02820803,3109.5,3109.4,1.13044817]
[1644957436873,1.76311803,3109.5,3109.4,1.13044817]
[1644957438072,3.85,3109.4,3109.3,0.00494095]
[1644957438271,8.26673572,3109.4,3109.3,0.00494095]
[1644957438474,4.8,3109.3,3108.8,0.01976677]
[1644957438774,3.9658855,3109.2,3109.0,1.09858203]
[1644957439076,1.17024091,3109.1,3109.0,1.09858203]
[1644957439274,4.83153099,3109.1,3109.0,1.09858203]
[1644957439516,5.26644099,3109.1,3109.0,1.09858203]
[1644957439915,6.07084099,3109.1,3109.0,1.09858203]
[1644957440317,6.07084099,3109.1,3109.0,0.8851514]
[1644957440518,6.07084099,3109.1,3108.2,0.61095289]
[1644957440519,6.87529099,3109.1,3108.2,0.61095289]
[1644957440717,3.50665399,3109.0,3108.2,0.61095289]
[1644957440917,3.80665399,3109.0,3108.2,0.61095289]
[1644957441318,3.80665399,3109.0,3108.1,0.61095289]
[1644957441518,4.80785399,3109.0,3108.1,0.61095289]
[1644957441721,4.80785399,3109.0,3108.2,0.61095289]
[1644957441919,1.3012,3109.0,3108.1,0.61095289]
[1644957442320,1.3012,3109.0,3108.3,0.61095289]
[1644957442520,1.3012,3109.0,3108.2,0.61095289]
[1644957442719,8.49230012,3109.1,3108.8,0.0049416]
[1644957443572,8.49230012,3109.1,3108.1,0.61095289]
[1644957443772,5.19898478,3109.1,3108.8,0.00494154]
[1644957444672,3.65964288,3109.1,3108.8,0.00494154]
[1644957444875,0.94634288,3109.1,3108.5,0.61095289]
[1644957445075,0.94634288,3109.1,3108.8,0.00494154]
[1644957445272,1.68211,3109.8,3108.8,0.00494154]
[1644957445477,0.25,3110.0,3108.8,3.31642313]
[1644957445674,6.39291,3110.2,3108.8,3.92737602]
[1644957445873,6.39291,3110.2,3108.8,3.31642313]
[1644957446073,6.39291,3110.2,3108.8,3.31148159]
[1644957446275,1.77777881,3109.7,3109.1,0.00494122]
[1644957446474,2.58187881,3109.7,3109.1,0.00494122]
[1644957446673,1.77777881,3109.7,3109.1,0.00494122]
[1644957447327,1.77782881,3109.7,3108.8,3.92243448]
[1644957447527,0.80412,3109.6,3109.1,0.00494118]
[1644957447928,3.2165462,3110.1,3109.1,0.00494118]
[1644957447929,5.958,3110.2,3109.1,0.00494118]
[1644957448130,3.65513811,3110.6,3109.1,0.00494118]
[1644957448131,0.43794811,3110.6,3109.3,0.61095289]
[1644957448328,0.43794811,3110.6,3109.2,0.61095289]
[1644957448529,0.43491,3110.6,3109.5,0.8038854]
[1644957448727,0.43491,3110.6,3109.3,3.5]
[1644957448931,0.9609311,3110.3,3109.3,4.11095289]
[1644957449128,0.9609311,3110.3,3109.1,4.11589423]
[1644957449329,0.9609311,3110.3,3109.1,3.50494134]
[1644957449330,0.80398,3110.1,3109.1,3.50494134]
[1644957449539,1.60799,3110.1,3109.1,3.50494134]
[1644957449729,0.80402,3110.0,3109.1,4.3040068]
[1644957449928,0.80402,3110.0,3109.1,4.30894803]
[1644957450528,0.80396,3110.2,3109.1,4.30894803]
[1644957450772,1.60794,3110.2,3109.1,4.30894803]
[1644957450968,0.9609311,3110.3,3109.2,0.00414453]
[1644957451176,0.9609311,3110.3,3109.5,0.8039162]
[1644957451369,0.9609311,3110.3,3109.6,0.00414453]
[1644957451869,0.80397,3110.2,3109.6,0.00414453]
[1644957452074,0.80397,3110.2,3109.4,0.00414453]
[1644957452269,0.80398,3110.1,3109.4,0.00414453]
[1644957452668,0.80397,3110.2,3109.4,0.00414453]
[1644957453072,1.60791,3110.5,3109.4,0.00414453]
[1644957453073,1.13677359,3109.8,3109.4,0.00414453]
[1644957453273,3.04501359,3109.8,3109.1,0.00414453]
[1644957453470,2.24092359,3109.8,3108.9,0.0187856]
[1644957453669,2.24092359,3109.8,3109.1,0.00494129]
[1644957454520,2.24092359,3109.8,3108.9,0.0187856]
[1644957454724,0.80419,3109.4,3109.1,0.00484854]
[1644957454918,1.60838,3109.4,3109.1,0.00484854]
[1644957455131,0.14713207,3109.4,3109.1,0.00484854]
[1644957455817,0.14713207,3109.4,3108.9,0.0187856]
[1644957456018,0.14713207,3109.4,3109.1,0.00484856]
[1644957456423,0.95132207,3109.4,3109.1,0.00484856]
[1644957456622,3.42365034,3109.3,3109.1,0.00484856]
[1644957456820,0.80437,3109.2,3108.9,0.0187856]
[1644957457019,4.113943,3109.2,3108.9,0.0187856]
[1644957457423,0.93635227,3109.1,3108.9,0.0187856]
[1644957457623,3.34934227,3109.1,3108.9,0.0187856]
[1644957457827,4.45368367,3109.1,3108.9,0.0187856]
[1644957458671,5.25802367,3109.1,3108.9,0.0187856]
[1644957458872,0.80433,3109.0,3108.9,0.0187856]
[1644957459280,0.93635227,3109.1,3108.9,0.0187856]
[1644957459476,4.82622,3109.6,3108.9,0.0187856]
[1644957459674,2.07133,3109.7,3108.9,0.0187856]
[1644957459978,1.60828,3109.5,3108.9,0.0187856]
[1644957460175,0.43491,3109.4,3108.9,0.0187856]
[1644957460374,0.43491,3109.4,3109.0,1.06938432]
[1644957460375,1.80286963,3109.3,3109.0,1.06938432]
[1644957460573,0.59233834,3109.2,3109.1,0.0041246]
[1644957460978,0.80431,3109.1,3108.9,0.0187856]
[1644957461174,0.29233834,3109.0,3108.9,0.0187856]
[1644957461578,0.29233834,3109.0,3108.9,1.08805717]
[1644957468576,2.41292,3109.1,3108.9,1.08805717]
[1644957468577,1.60861,3109.1,3108.9,1.08805717]
[1644957468779,1.1043,3109.1,3109.0,1.06927157]
[1644957468979,1.39673466,3109.1,3109.0,1.06927157]
[1644957469179,0.3,3109.1,3109.0,1.06927157]
[1644957469425,0.80414,3109.2,3109.0,1.06927157]
[1644957469626,3.93833,3109.9,3109.0,1.06927157]
[1644957469827,1.09647406,3109.8,3109.1,0.0041246]
[1644957470129,1.09647406,3109.8,3109.2,1.06927157]
[1644957470130,1.09646406,3109.7,3109.2,1.06927157]
[1644957470331,0.29243406,3109.6,3109.2,1.06927157]
[1644957470529,0.29243406,3109.6,3109.3,1.06927157]
[1644957470727,1.09654406,3109.6,3109.4,1.06927157]
[1644957470928,0.29243406,3109.5,3109.1,0.00454502]
[1644957471129,0.29243406,3109.5,3109.2,1.06909621]
[1644957471329,0.29243406,3109.4,3109.2,1.06909621]
[1644957471530,0.80413,3109.6,3109.3,1.06909621]
[1644957471735,1.09667608,3109.5,3109.4,1.06909621]
[1644957471934,1.09667608,3109.5,3109.2,1.06909621]
[1644957471935,0.3,3109.4,3109.2,1.06909621]
[1644957472230,0.3,3109.4,3109.1,0.00454498]
[1644957472231,0.29254608,3109.3,3109.1,0.00454498]
[1644957472431,0.29254608,3109.3,3109.2,1.06906491]
[1644957472837,1.09670168,3109.7,3109.2,1.06906491]
[1644957473032,1.60832,3109.4,3109.3,1.06906491]
[1644957473268,0.29254608,3109.4,3109.3,1.06906491]
[1644957473671,0.80416,3109.4,3109.3,1.06906491]
[1644957473871,1.09670608,3109.4,3109.0,1.06906491]
[1644957474071,0.29254608,3109.3,3109.1,0.00454533]
[1644957474271,0.29254608,3109.3,3109.2,1.06906491]
[1644957474677,1.09668608,3109.3,3109.2,1.06906491]
[1644957475271,1.09668608,3109.3,3109.1,0.00454537]
[1644957475474,0.80412,3109.5,3109.4,0.65706822]
[1644957475671,1.11183555,3109.5,3109.4,1.72613313]
[1644957477034,1.11183555,3109.5,3109.4,0.65706822]
[1644957478527,1.11183555,3109.5,3109.4,1.71155529]
[1644957479130,0.30771555,3109.5,3109.4,1.71155529]
[1644957479339,0.13605688,3110.4,3109.4,1.71155529]
[1644957479340,0.30771555,3110.0,3109.4,1.71155529]
[1644957479526,0.73092057,3110.8,3109.4,1.71155529]
[1644957479527,0.30793581,3109.9,3109.5,1.05448707]
[1644957479727,0.30793581,3109.8,3109.5,1.05448707]
[1644957479926,0.30793581,3109.7,3109.5,1.05448707]
[1644957480127,0.80391,3110.1,3109.6,1.07389072]
[1644957480326,0.30791475,3110.0,3109.7,1.05448707]
[1644957480528,0.30791475,3109.9,3109.7,1.05448707]
[1644957480782,3.82737754,3110.5,3109.7,1.05448707]
[1644957480783,0.30791475,3109.8,3109.7,1.05448707]
[1644957481183,1.21965229,3110.4,3109.7,1.05448707]
[1644957481381,0.80391,3110.1,3109.7,1.05448707]
[1644957481679,0.30791475,3110.0,3109.7,1.05448707]
[1644957481880,0.91173754,3110.4,3109.8,1.05448707]
[1644957481881,0.30791475,3109.9,3109.8,1.05448707]
[1644957482079,0.30791475,3109.9,3109.4,0.65706822]
[1644957482080,0.30791475,3110.3,3109.5,1.05448707]
[1644957482381,1.60795,3110.1,3109.5,1.05448707]
[1644957482580,0.30791475,3110.0,3109.5,1.96426944]
[1644957482885,0.30791475,3110.0,3109.6,1.05448707]
[1644957483081,1.11189475,3110.0,3109.6,1.05448707]
[1644957483284,0.30791475,3109.9,3109.6,1.05448707]
[1644957483681,0.30791475,3109.8,3109.6,1.05448707]
[1644957484084,0.30791475,3109.7,3109.6,1.05448707]
[1644957485041,0.30791475,3109.9,3109.5,1.05448707]
[1644957485239,0.80396,3109.8,3109.5,1.05448707]
[1644957485534,0.30791475,3109.7,3109.5,1.05448707]
[1644957485940,0.61173754,3110.6,3109.6,3.24941792]
[1644957486135,0.6147683,3110.6,3109.7,1.05448707]
[1644957486333,0.6147683,3110.6,3109.8,3.32375222]
[1644957486536,0.30806511,3110.5,3109.9,1.05448707]
[1644957486735,0.30806511,3110.4,3109.9,1.05448707]
[1644957486935,0.30806511,3110.3,3109.9,1.05448707]
[1644957487137,0.30806511,3110.2,3110.1,1.0453293]
[1644957487338,0.30806511,3110.2,3110.1,5.88603677]
[1644957487935,0.0030313,3110.6,3110.1,2.09981637]
[1644957488182,0.30802774,3110.6,3110.2,1.05448707]
[1644957488373,0.30802774,3110.5,3110.2,4.3103565]
[1644957488677,0.30802774,3110.4,3110.3,1.05448707]
[1644957489073,4.00685125,3110.6,3110.3,1.05448707]
[1644957489274,0.30802774,3110.5,3110.3,1.05448707]
[1644957489575,0.30802774,3110.5,3110.4,3.26932529]
[1644957489773,0.30802774,3110.5,3110.4,4.32381236]
[1644957489974,0.30802774,3110.5,3110.4,1.05448707]
[1644957490375,0.30802774,3110.5,3110.3,1.85816377]
[1644957490575,0.30802774,3110.5,3110.4,1.05448707]
[1644957490776,0.30802774,3110.5,3110.4,4.27838979]
[1644957490976,0.30802774,3110.5,3110.4,1.05448707]
[1644957491180,0.30802774,3110.5,3110.3,1.05448707]
[1644957491376,0.30802774,3110.5,3110.4,3.25171029]
[1644957491577,0.30802774,3110.5,3110.4,4.30619736]
[1644957491776,0.30802774,3110.5,3110.4,1.05448707]
[1644957492026,0.30802774,3110.5,3110.4,0.98738847]
[1644957492323,0.30802774,3110.5,3110.3,0.803676]
[1644957493323,0.30802774,3110.5,3110.4,3.2338314]
[1644957494122,0.30802774,3110.5,3110.3,0.803676]
[1644957494323,0.30802774,3110.5,3110.4,3.2057726]
[1644957494525,0.30802774,3110.5,3110.3,0.803676]
[1644957494729,0.30802774,3110.5,3110.2,3.2652439]
[1644957494923,0.30802774,3110.5,3110.1,1.8490463]
[1644957495779,0.61173754,3111.4,3110.6,1.46064928]
[1644957495978,3.1927,3111.7,3110.6,2.12874928]
[1644957495979,0.61173754,3111.7,3110.6,2.12874928]
[1644957496181,0.61173754,3111.7,3110.7,18.8]
[1644957496381,7.89173754,3111.8,3110.6,2.59174928]
[1644957496576,0.61173754,3111.8,3110.8,0.8034]
[1644957496776,0.61173754,3111.9,3111.5,1.19302778]
[1644957497777,1.41522754,3111.9,3111.5,1.19302778]
[1644957497977,0.8035,3111.8,3111.5,1.19302778]
[1644957498378,0.8035,3111.8,3111.2,3.42859317]
[1644957498578,0.8035,3111.8,3111.1,0.8035088]
[1644957498778,0.80354,3111.7,3111.0,3.31697102]
[1644957498981,1.60714,3111.6,3111.0,3.31697102]
[1644957499178,0.80354,3111.7,3111.0,4.12049812]
[1644957499629,0.80354,3111.7,3111.0,0.8035271]
[1644957499833,1.41527754,3111.7,3111.1,1.00476745]
[1644957500030,3.02233754,3111.7,3111.1,1.00476745]
[1644957500431,0.00302436,3111.6,3111.1,1.00476745]
[1644957501031,0.00302436,3111.6,3111.1,1.80827415]
[1644957501429,1.06934605,3112.0,3111.1,1.80827415]
[1644957501430,0.61173754,3112.0,3111.1,1.80827415]
[1644957501638,0.00302436,3111.5,3111.1,1.00476745]
[1644957502232,0.00302436,3111.5,3111.1,1.80822995]
[1644957502730,0.80349,3111.9,3111.1,1.80822995]
[1644957502931,0.00302436,3111.5,3111.1,5.06569709]
[1644957503374,0.00302436,3111.5,3111.2,0.80342]
[1644957503577,0.00302436,3111.5,3111.3,3.29657894]
[1644957503778,0.80346,3112.0,3111.3,3.29657894]
[1644957504178,0.00302436,3111.5,3111.3,3.29657894]
[1644957504375,0.00302436,3111.5,3111.1,1.80822995]
[1644957504376,0.00302436,3111.5,3111.2,3.21191206]
[1644957504575,0.00302436,3111.5,3111.2,3.22823529]
[1644957504776,0.00302436,3111.5,3111.1,1.80822995]
[1644957504977,1.62910045,3112.2,3111.1,1.80822995]
[1644957505175,0.80351,3112.0,3111.2,3.2233343]